bitfinex-derivatives/quotes_BTCF0:USTF0_20251219
["timestamp","ask_amount","ask_price","bid_price","bid_amount"]
[1766172209549,1.12e-06,87673.0,87656.0,0.00017112]
[1766172210758,1.12e-06,87673.0,87665.0,0.0114132]
[1766172211950,1.12e-06,87679.0,87667.0,0.011413]
[1766172212157,1.12e-06,87679.0,87663.0,0.0171734]
[1766172213152,1.12e-06,87679.0,87665.0,0.0114132]
[1766172213462,0.0114116,87678.0,87663.0,0.00576]
[1766172213662,1.12e-06,87679.0,87663.0,0.0114135]
[1766172213862,0.0114116,87678.0,87660.0,0.00468]
[1766172214361,0.0114128,87669.0,87656.0,0.00017112]
[1766172214660,0.011412,87675.0,87657.0,0.0114143]
[1766172214862,1.12e-06,87679.0,87656.0,0.00017112]
[1766172215064,0.0114122,87674.0,87656.0,0.01158552]
[1766172215456,0.0114117,87678.0,87658.0,0.0114141]
[1766172215655,0.0114119,87676.0,87658.0,0.0114141]
[1766172216262,0.0114119,87676.0,87660.0,0.0114139]
[1766172216562,0.0114119,87676.0,87657.0,0.0114143]
[1766172217154,0.0114119,87676.0,87656.0,0.00017112]
[1766172217155,0.0114119,87676.0,87659.0,0.011414]
[1766172217862,0.0114119,87676.0,87656.0,0.01158552]
[1766172218062,0.0114119,87676.0,87658.0,0.0114141]
[1766172218354,1.12e-06,87679.0,87656.0,0.00017112]
[1766172218557,0.0114122,87674.0,87658.0,0.0114142]
[1766172218860,0.0114124,87672.0,87656.0,0.01158552]
[1766172219167,1.12e-06,87679.0,87663.0,0.0114134]
[1766172219666,1.12e-06,87679.0,87665.0,0.0114132]
[1766172219861,1.12e-06,87679.0,87668.0,0.0114129]
[1766172220570,1.5e-07,87680.0,87673.0,0.0114121]
[1766172220757,0.00576,87689.0,87665.0,0.00576]
[1766172221863,0.00576,87689.0,87670.0,0.0114126]
[1766172223753,0.0171703,87689.0,87670.0,0.0114126]
[1766172223953,0.00576,87689.0,87667.0,0.0114129]
[1766172224157,0.0114108,87685.0,87665.0,0.00576]
[1766172224357,0.00576,87689.0,87665.0,0.00576]
[1766172224565,0.00576,87689.0,87663.0,0.0114134]
[1766172224761,0.0114119,87676.0,87659.0,0.00372]
[1766172224959,0.00576,87679.0,87659.0,0.00372]
[1766172226369,0.00576,87679.0,87663.0,0.0114135]
[1766172227370,0.0171715,87679.0,87661.0,0.0114137]
[1766172227870,0.00576,87679.0,87661.0,0.0114137]
[1766172228869,0.00576,87679.0,87658.0,0.0056]
[1766172229170,0.00576,87679.0,87656.0,0.00017112]
[1766172229362,0.00576,87679.0,87657.0,0.00576]
[1766172230172,0.00576,87679.0,87670.0,0.0114125]
[1766172230870,0.0114107,87685.0,87665.0,0.0114133]
[1766172231076,0.0160106,87686.0,87667.0,0.0114129]
[1766172231261,0.0160106,87686.0,87669.0,0.0114127]
[1766172231571,0.0046,87686.0,87671.0,0.0114125]
[1766172232267,0.0046,87686.0,87656.0,0.00017112]
[1766172232467,0.0046,87686.0,87668.0,0.0114129]
[1766172232674,0.0046,87686.0,87671.0,0.0114125]
[1766172233069,0.0046,87686.0,87676.0,0.0114118]
[1766172233379,0.3114094,87696.0,87680.0,0.0114113]
[1766172233575,0.3,87696.0,87679.0,0.00017112]
[1766172233875,0.0114095,87695.0,87679.0,0.00017112]
[1766172234467,0.3,87696.0,87680.0,0.0114113]
[1766172234661,0.3,87696.0,87679.0,0.00017112]
[1766172234662,0.3,87696.0,87682.0,0.011411]
[1766172234865,0.3,87696.0,87684.0,0.0114108]
[1766172235369,0.3,87696.0,87679.0,0.00017112]
[1766172235370,0.3,87696.0,87682.0,0.011411]
[1766172235568,0.3,87696.0,87679.0,0.01158252]
[1766172236270,0.3,87696.0,87681.0,0.0114112]
[1766172238168,0.3,87696.0,87679.0,0.00017112]
[1766172238169,0.0114096,87694.0,87679.0,0.00017112]
[1766172238372,0.0114098,87692.0,87679.0,0.00017112]
[1766172238576,0.3,87696.0,87680.0,0.0114113]
[1766172239175,0.3,87696.0,87679.0,0.00017112]
[1766172239374,0.0114094,87695.0,87679.0,0.00017112]
[1766172239579,0.3,87696.0,87679.0,0.00017112]
[1766172239875,0.3114093,87696.0,87679.0,0.00017112]
[1766172240076,0.0114098,87692.0,87679.0,0.00017112]
[1766172240679,0.00576,87691.0,87679.0,1.12e-06]
[1766172240868,0.0114101,87690.0,87679.0,1.12e-06]
[1766172241278,0.00576,87691.0,87679.0,1.12e-06]
[1766172241670,0.0114102,87689.0,87667.0,0.00176]
[1766172241967,0.0114101,87690.0,87672.0,0.0114123]
[1766172242171,0.00576,87691.0,87674.0,0.011412]
[1766172242374,0.3,87696.0,87667.0,0.0119729]
[1766172242579,0.3,87696.0,87684.0,0.0114107]
[1766172242775,0.3,87696.0,87686.0,0.0114105]
[1766172242977,0.3,87696.0,87689.0,0.0114101]
[1766172243379,0.3,87696.0,87685.0,0.0114106]
[1766172243983,0.0114072,87712.0,87677.0,0.00388]
[1766172243984,0.00576,87707.0,87692.0,0.0114097]
[1766172244374,0.00576,87707.0,87691.0,0.00017102]
[1766172244579,0.06095865,87738.0,87691.0,0.00017102]
[1766172244774,1.45528,87734.0,87705.0,0.011408]
[1766172244972,0.0114049,87730.0,87711.0,0.00017102]
[1766172245282,0.00576,87729.0,87711.0,0.00017102]
[1766172246383,0.00576,87729.0,87697.0,0.00372]
[1766172246384,0.00576,87729.0,87697.0,0.00184]
[1766172247174,0.0114058,87723.0,87695.0,0.0006]
[1766172247475,0.00017066,87718.0,87700.0,0.00017102]
[1766172247676,0.0114066,87717.0,87700.0,0.00017102]
[1766172247881,0.00017066,87718.0,87700.0,0.00017102]
[1766172247882,0.00272,87716.0,87700.0,0.00017102]
[1766172248185,0.00272,87716.0,87700.0,0.01157972]
[1766172248480,0.00272,87716.0,87700.0,0.00017102]
[1766172249084,0.00272,87716.0,87700.0,1.02e-06]
[1766172249382,0.00272,87716.0,87672.0,0.08084888]
[1766172249383,0.0114074,87711.0,87674.0,1.45512]
[1766172249686,0.0114075,87710.0,87689.0,0.0114101]
[1766172249885,0.0046,87709.0,87673.0,0.11401468]
[1766172250183,0.0160076,87709.0,87674.0,0.00576]
[1766172250483,0.00017102,87700.0,87683.0,0.00017102]
[1766172250872,0.0114041,87736.0,87683.0,0.00017102]
[1766172251080,0.03127436,87735.0,87692.0,0.0114097]
[1766172251274,0.41784404,87730.0,87692.0,0.0114097]
[1766172251475,0.02551436,87729.0,87692.0,0.0114097]
[1766172251683,0.0114073,87712.0,87692.0,0.0114097]
[1766172251882,0.00036,87711.0,87692.0,0.0114097]
[1766172252087,0.0114079,87707.0,87693.0,0.00017102]
[1766172252387,0.0114085,87703.0,87680.0,0.0114112]
[1766172252585,0.00572,87702.0,87678.0,0.00372]
[1766172252779,0.00572,87702.0,87678.0,0.00492]
[1766172253389,0.0114087,87701.0,87681.0,0.00017102]
[1766172253586,0.00572,87702.0,87681.0,1.02e-06]
[1766172253884,0.01141,87691.0,87681.0,1.02e-06]
[1766172254081,0.0114102,87689.0,87681.0,1.02e-06]
[1766172254396,0.00576,87690.0,87681.0,1.02e-06]
[1766172254579,0.0114102,87689.0,87681.0,1.02e-06]
[1766172256089,0.00576,87690.0,87681.0,1.02e-06]
[1766172256388,0.00284,87695.0,87681.0,1.02e-06]
[1766172258388,0.0114099,87691.0,87681.0,1.02e-06]
[1766172258590,0.00284,87695.0,87681.0,1.02e-06]
[1766172259088,0.0114105,87687.0,87681.0,1.02e-06]
[1766172259290,0.00576,87686.0,87681.0,1.02e-06]
[1766172260284,0.0114107,87685.0,87681.0,1.02e-06]
[1766172260686,0.011411,87683.0,87657.0,0.0114143]
[1766172260989,0.011411,87683.0,87659.0,0.011414]
[1766172261197,0.011411,87683.0,87662.0,0.0114136]
[1766172261487,0.00576,87686.0,87662.0,0.0114136]
[1766172261688,0.00017102,87683.0,87665.0,0.00017102]
[1766172261885,0.0114116,87679.0,87665.0,0.00017102]
[1766172262086,0.011412,87676.0,87656.0,0.0114143]
[1766172262287,0.00576,87678.0,87656.0,0.0114143]
[1766172262988,0.00576,87678.0,87655.0,0.00372]
[1766172263190,0.00576,87678.0,87658.0,0.00017102]
[1766172263785,0.0114117,87677.0,87631.0,1.4552]
[1766172263986,0.41784404,87670.0,87638.0,0.0114168]
[1766172264177,0.0114131,87667.0,87638.0,0.0114168]
[1766172264379,0.00576,87669.0,87635.0,0.0114171]
[1766172264582,0.00188,87676.0,87654.0,0.0114146]
[1766172264782,0.00017112,87674.0,87656.0,0.00017112]
[1766172265081,0.00017112,87674.0,87660.0,0.0114138]
[1766172265276,0.00017112,87674.0,87656.0,0.00017112]
[1766172265277,0.00017112,87674.0,87665.0,0.0114132]
[1766172265489,2e-08,87674.0,87669.0,0.0114127]
[1766172265684,2e-08,87674.0,87665.0,0.0114133]
[1766172265880,2e-08,87676.0,87673.0,0.0114122]
[1766172266593,0.00576,87678.0,87677.0,0.0114117]
[1766172266783,1.45528,87693.0,87681.0,0.0114112]
[1766172266981,0.00017112,87696.0,87681.0,0.0114112]
[1766172267180,0.00184,87695.0,87678.0,0.00017112]
[1766172267381,0.0114096,87694.0,87678.0,1.12e-06]
[1766172268288,0.00184,87695.0,87678.0,1.12e-06]
[1766172268682,0.0114099,87691.0,87678.0,1.12e-06]
[1766172268877,0.0114095,87694.0,87678.0,1.12e-06]
[1766172269077,0.0132495,87695.0,87678.0,1.12e-06]
[1766172269283,0.0114098,87693.0,87678.0,1.12e-06]
[1766172269477,0.22790711,87690.0,87678.0,1.12e-06]
[1766172269987,0.22790711,87690.0,87681.0,0.0114111]
[1766172270187,0.22790711,87690.0,87683.0,0.0114108]
[1766172270393,0.00184,87695.0,87678.0,1.12e-06]
[1766172270589,0.00576,87694.0,87692.0,0.0114096]
[1766172271192,0.00576,87693.0,87688.0,0.0114102]
[1766172271394,0.00576,87693.0,87685.0,0.0114106]
[1766172272193,0.00576,87693.0,87676.0,0.0114118]
[1766172272387,0.00576,87693.0,87667.0,0.00564]
[1766172272588,0.00576,87693.0,87679.0,0.0114114]
[1766172273291,0.00576,87693.0,87681.0,0.0114111]
[1766172273486,0.00576,87693.0,87684.0,0.0114107]
[1766172273697,0.00576,87693.0,87686.0,0.0114105]
[1766172274499,0.00468,87692.0,87686.0,0.0114105]
[1766172275294,0.00017112,87696.0,87683.0,0.0114109]
[1766172275499,0.00576,87693.0,87680.0,0.0114113]
[1766172275702,0.00576,87693.0,87679.0,0.0114113]
[1766172276386,0.00576,87693.0,87644.0,0.011416]
[1766172276701,0.41767662,87690.0,87665.0,0.0114132]
[1766172276895,0.00576,87693.0,87662.0,0.0114137]
[1766172277196,0.0114114,87680.0,87664.0,0.0114134]
[1766172277387,0.0114116,87678.0,87661.0,0.0114138]
[1766172277590,0.01158272,87678.0,87663.0,0.00011459]
[1766172277792,0.011412,87675.0,87663.0,0.00011459]
[1766172278096,0.0114125,87672.0,87650.0,0.0018]
[1766172278285,0.011412,87675.0,87658.0,0.0114141]
[1766172278694,0.00017112,87678.0,87655.0,0.0114145]
[1766172279591,0.0114124,87673.0,87655.0,0.0114145]
[1766172280399,0.00017112,87678.0,87654.0,0.0114146]
[1766172280400,0.0114125,87672.0,87654.0,0.0114146]
[1766172280693,0.00564,87671.0,87656.0,0.0114144]
[1766172280900,0.00564,87671.0,87659.0,0.011414]
[1766172281294,0.00564,87671.0,87661.0,0.0114137]
[1766172281997,0.00564,87671.0,87645.0,0.005]
[1766172282390,0.00564,87671.0,87658.0,0.0114141]
[1766172282588,0.00564,87671.0,87660.0,0.0114139]
[1766172283100,0.00564,87671.0,87647.0,0.0114156]
[1766172283288,0.00564,87671.0,87657.0,0.0114143]
[1766172283493,0.00564,87671.0,87659.0,0.011414]
[1766172284198,0.00564,87671.0,87658.0,0.0114141]
[1766172284406,0.00564,87671.0,87660.0,0.0114139]
[1766172284996,0.00564,87671.0,87647.0,0.0114156]
[1766172285206,0.00464,87677.0,87666.0,0.0114131]
[1766172286191,0.00017112,87680.0,87663.0,0.00017112]
[1766172287000,1.4554,87696.0,87666.0,0.0114131]
[1766172287202,0.00096,87695.0,87663.0,0.00017112]
[1766172287604,0.00096,87695.0,87668.0,0.0114128]
[1766172287998,0.00017112,87690.0,87668.0,0.0114128]
[1766172288896,0.01158122,87690.0,87669.0,0.0114127]
[1766172289096,0.01158122,87690.0,87666.0,0.00376]
[1766172289097,0.00017112,87690.0,87671.0,0.0114124]
[1766172289302,0.00017112,87690.0,87673.0,0.0114121]
[1766172289907,1.12e-06,87690.0,87673.0,0.0114121]
[1766172290409,1.12e-06,87690.0,87670.0,0.28482129]
[1766172290613,1.12e-06,87690.0,87679.0,0.0114114]
[1766172290818,1.12e-06,87690.0,87679.0,0.0114113]
[1766172291901,1.12e-06,87690.0,87678.0,0.00576]
[1766172292108,1.12e-06,87690.0,87678.0,0.0114115]
[1766172292807,1.12e-06,87690.0,87681.0,0.0114112]
[1766172294302,1.12e-06,87690.0,87660.0,0.28482129]
[1766172294303,1.12e-06,87690.0,87634.0,0.0114172]
[1766172294503,1.12e-06,87690.0,87667.0,0.011413]
[1766172294708,1.12e-06,87690.0,87670.0,0.0114126]
[1766172295102,1.12e-06,87690.0,87661.0,0.00376]
[1766172295312,1.12e-06,87690.0,87678.0,0.0114115]
[1766172296813,1.12e-06,87690.0,87675.0,0.011412]
[1766172298009,1.12e-06,87690.0,87666.0,0.00564]
[1766172298215,0.01141112,87690.0,87671.0,0.0114124]
[1766172298513,1.12e-06,87690.0,87683.0,0.0114109]
[1766172298711,1.12e-06,87694.0,87683.0,0.0114109]
[1766172299106,1.12e-06,87694.0,87679.0,0.0114114]
[1766172300508,1.12e-06,87694.0,87677.0,0.0114116]
[1766172300919,0.01141072,87694.0,87677.0,0.0114116]
[1766172301112,1.12e-06,87694.0,87677.0,0.0114116]
[1766172301721,0.0114097,87693.0,87661.0,0.08084888]
[1766172301911,0.0114097,87693.0,87664.0,0.00576]
[1766172302108,1.12e-06,87694.0,87658.0,0.08084888]
[1766172302306,0.28482129,87690.0,87665.0,0.0114132]
[1766172302509,0.0114099,87692.0,87672.0,0.0114123]
[1766172302715,0.0114111,87682.0,87663.0,0.01158462]
[1766172302905,0.00576,87685.0,87663.0,0.00017112]
[1766172303309,0.00017112,87695.0,87670.0,0.28482129]
[1766172303719,0.00017112,87695.0,87679.0,0.0114114]
[1766172304120,1.12e-06,87695.0,87679.0,0.0114114]
[1766172304319,1.12e-06,87695.0,87671.0,0.00576]
[1766172304724,1.12e-06,87695.0,87683.0,0.0114108]
[1766172306235,2e-08,87697.0,87681.0,0.0114111]
[1766172306424,2e-08,87697.0,87680.0,0.00576]
[1766172306425,1.45524,87732.0,87700.0,0.0114087]
[1766172306627,0.0171659,87722.0,87700.0,0.0114087]
[1766172306809,0.0171659,87722.0,87702.0,0.0114083]
[1766172307223,0.0171659,87722.0,87697.0,0.00576]
[1766172307224,0.0114064,87718.0,87703.0,0.00017102]
[1766172307420,0.0114068,87715.0,87703.0,0.00017102]
[1766172307815,0.0114064,87718.0,87703.0,0.00017102]
[1766172309328,0.0114063,87720.0,87703.0,0.00017102]
[1766172310718,0.0114064,87718.0,87703.0,0.00017102]
[1766172310926,0.01157702,87721.0,87703.0,0.00017102]
[1766172311120,0.0114064,87719.0,87703.0,0.00017102]
[1766172311523,0.0114062,87720.0,87704.0,0.0114082]
[1766172312228,0.0114062,87720.0,87703.0,0.00017102]
[1766172312423,1.45524,87732.0,87703.0,0.00017102]
[1766172312424,1.45508,87756.0,87710.0,0.28482129]
[1766172312626,1.45508,87769.0,87731.0,0.0114047]
[1766172312923,0.0114013,87758.0,87734.0,0.0114042]
[1766172313124,0.0114011,87759.0,87736.0,0.011404]
[1766172313326,0.00017102,87756.0,87739.0,0.00017102]
[1766172313530,1.4608,87755.0,87739.0,0.00017102]
[1766172313825,0.011402,87753.0,87739.0,0.00017102]
[1766172314229,1.46076,87752.0,87739.0,0.00017102]
[1766172314428,0.0114021,87751.0,87733.0,0.0114043]
[1766172314627,1.46076,87752.0,87733.0,0.0114043]
[1766172315127,0.0114021,87752.0,87733.0,0.0114043]
[1766172315523,0.00017102,87756.0,87734.0,0.00017102]
[1766172316130,0.0114021,87752.0,87735.0,0.0114042]
[1766172316331,1.46052,87751.0,87734.0,0.00017102]
[1766172316532,1.46052,87751.0,87738.0,0.0114037]
[1766172316730,1.46052,87751.0,87734.0,0.00017102]
[1766172317329,1.46052,87751.0,87735.0,0.0114041]
[1766172317523,1.46052,87751.0,87738.0,0.0114038]
[1766172317726,0.00017102,87756.0,87745.0,0.0114028]
[1766172317925,0.00576,87755.0,87741.0,0.0114033]
[1766172318125,0.00017102,87756.0,87741.0,0.0114033]
[1766172318326,0.00184,87755.0,87741.0,0.0114033]
[1766172318521,0.00017102,87756.0,87741.0,0.0114033]
[1766172318827,0.00017102,87756.0,87734.0,0.00017102]
[1766172318828,0.00184,87755.0,87734.0,0.00017102]
[1766172319130,0.00017102,87756.0,87734.0,0.00017102]
[1766172319326,0.00376,87755.0,87734.0,0.00017102]
[1766172319525,0.0114022,87751.0,87734.0,0.00017102]
[1766172319724,0.0114017,87754.0,87734.0,0.00017102]
[1766172321028,0.0114021,87751.0,87734.0,0.00017102]
[1766172321243,0.00376,87755.0,87737.0,0.0114038]
[1766172321931,0.00017102,87756.0,87734.0,0.00017102]
[1766172322133,0.00208,87755.0,87734.0,0.00017102]
[1766172322319,0.00017102,87756.0,87734.0,0.00017102]
[1766172322725,0.00376,87755.0,87743.0,0.0114031]
[1766172323531,0.00376,87755.0,87734.0,0.00017102]
[1766172324239,0.00376,87755.0,87741.0,0.0114033]
[1766172324736,0.00576,87754.0,87734.0,0.00017102]
[1766172324927,0.00017102,87756.0,87744.0,0.011403]
[1766172325127,0.00192,87755.0,87744.0,0.011403]
[1766172325333,0.00192,87755.0,87741.0,0.0114033]
[1766172325533,0.00192,87755.0,87734.0,0.00017102]
[1766172325534,0.00192,87755.0,87738.0,0.0114037]
[1766172325838,0.00192,87755.0,87737.0,0.0114039]
[1766172326036,0.00192,87755.0,87734.0,0.00017102]
[1766172326422,0.00192,87755.0,87738.0,0.0114037]
[1766172326623,0.00576,87754.0,87734.0,0.00017102]
[1766172326835,0.00576,87753.0,87737.0,0.0114038]
[1766172327036,0.00576,87753.0,87739.0,0.0114036]
[1766172327627,2e-08,87756.0,87735.0,0.0114042]
[1766172327838,2e-08,87756.0,87748.0,0.0114024]
[1766172328030,0.00576,87755.0,87744.0,0.0114029]
[1766172328230,0.00576,87755.0,87746.0,0.0114027]
[1766172328631,0.0113992,87774.0,87740.0,0.28482129]
[1766172328833,0.00576,87773.0,87743.0,0.0114031]
[1766172329034,0.0113959,87799.0,87778.0,0.0113985]
[1766172329332,0.00576,87801.0,87768.0,0.0113998]
[1766172329535,0.00576,87800.0,87771.0,0.0113995]
[1766172329726,0.00017091,87794.0,87777.0,0.00017091]
[1766172329923,0.01156741,87794.0,87777.0,0.00017091]
[1766172330128,0.00017091,87794.0,87777.0,0.00017091]
[1766172330330,0.00576,87800.0,87782.0,0.0113981]
[1766172330629,0.00576,87800.0,87784.0,0.0113978]
[1766172330937,0.0046,87799.0,87786.0,0.0113975]
[1766172331442,0.0046,87799.0,87783.0,0.0113979]
[1766172331734,0.0046,87799.0,87785.0,0.0113976]
[1766172332139,0.0001137,87801.0,87781.0,0.00568]
[1766172332337,1.46548364,87825.0,87800.0,0.28482129]
[1766172332338,0.0113929,87822.0,87800.0,0.28482129]
[1766172332637,0.0113944,87811.0,87791.0,0.00576]
[1766172332827,0.00576,87810.0,87791.0,0.00576]
[1766172333032,0.00576,87810.0,87791.0,0.0171569]
[1766172333233,0.00576,87810.0,87791.0,0.00576]
[1766172333530,0.00576,87810.0,87792.0,0.00017091]
[1766172333728,0.00576,87810.0,87771.0,1.45412]
[1766172333932,0.0113953,87804.0,87780.0,0.0113982]
[1766172334132,0.0113948,87808.0,87770.0,0.34739729]
[1766172334333,0.00576,87810.0,87784.0,0.0113977]
[1766172334527,0.00576,87810.0,87771.0,0.0150795]
[1766172334528,0.0113951,87805.0,87780.0,0.0171583]
[1766172334734,0.01156661,87801.0,87784.0,0.00017091]
[1766172334939,0.00573091,87801.0,87784.0,0.00017091]
[1766172335330,0.01712651,87801.0,87784.0,0.00017091]
[1766172335735,9.1e-07,87801.0,87784.0,0.00017091]
[1766172336630,0.01139661,87801.0,87784.0,0.00017091]
[1766172337032,9.1e-07,87801.0,87784.0,0.00017091]
[1766172337334,9.1e-07,87801.0,87784.0,0.01156871]
[1766172337532,0.0113958,87800.0,87784.0,0.00017091]
[1766172337736,0.0113957,87800.0,87784.0,0.00017091]
[1766172338235,9.1e-07,87801.0,87784.0,1e-08]
[1766172338435,9.1e-07,87801.0,87760.0,0.28403179]
[1766172338436,9.1e-07,87801.0,87769.0,0.0113997]
[1766172338631,9.1e-07,87801.0,87770.0,0.28403179]
[1766172338833,0.0113967,87793.0,87772.0,0.0113994]
[1766172339144,0.0113973,87789.0,87769.0,0.0113997]
[1766172339326,0.0113973,87789.0,87750.0,0.28403179]
[1766172339327,0.00368,87792.0,87770.0,0.00593091]
[1766172339532,0.00368,87792.0,87770.0,0.00017091]
[1766172339533,0.01156811,87790.0,87770.0,0.00017091]
[1766172339939,0.00017091,87790.0,87770.0,0.00017091]
[1766172340134,0.00017091,87790.0,87771.0,0.0113995]
[1766172340435,0.01156801,87790.0,87771.0,0.0113995]
[1766172340829,0.01156801,87790.0,87770.0,0.00017091]
[1766172340830,0.0113977,87786.0,87770.0,0.00017091]
[1766172341141,0.00017091,87790.0,87770.0,0.00017091]
[1766172341442,0.011398,87783.0,87770.0,0.00017091]
[1766172341640,0.0113982,87781.0,87770.0,0.00017091]
[1766172341830,0.00332,87782.0,87770.0,0.00017091]
[1766172342245,0.00332,87782.0,87768.0,0.0113998]
[1766172342438,0.00332,87782.0,87753.0,0.00193469]
[1766172342642,0.00332,87782.0,87764.0,0.0114003]
[1766172343040,0.00332,87782.0,87753.0,0.00193469]
[1766172343236,0.00332,87782.0,87759.0,0.00017091]
[1766172344831,0.0147182,87782.0,87761.0,0.0114007]
[1766172345031,0.0113984,87780.0,87760.0,0.0114008]
[1766172345333,0.00576,87781.0,87762.0,0.0114006]
[1766172345533,0.00576,87781.0,87760.0,0.0114009]
[1766172345739,0.00576,87781.0,87759.0,0.00017091]
[1766172346036,0.00576,87781.0,87769.0,0.0113997]
[1766172346231,0.00576,87781.0,87765.0,0.0114002]
[1766172346432,0.00576,87781.0,87759.0,0.00017091]
[1766172347041,0.00576,87781.0,87760.0,0.0114009]
[1766172347337,0.0113985,87779.0,87760.0,0.0114009]
[1766172347744,0.00576,87781.0,87759.0,0.00017091]
[1766172347944,0.0113991,87775.0,87759.0,0.00017091]
[1766172348843,0.0113994,87773.0,87759.0,0.00017091]
[1766172349242,0.00576,87781.0,87759.0,0.00017091]
[1766172349544,0.0114003,87765.0,87742.0,0.0114032]
[1766172349735,0.0113976,87786.0,87747.0,0.0114025]
[1766172349736,0.00556,87764.0,87747.0,0.0114025]
[1766172350133,0.00556,87764.0,87749.0,0.0114023]
[1766172350632,0.00011301,87763.0,87752.0,0.0114019]
[1766172351045,0.00576,87762.0,87748.0,0.00017091]
[1766172351741,0.00017091,87765.0,87748.0,0.00017091]
[1766172351948,2e-08,87765.0,87762.0,0.0114006]
[1766172352738,2e-08,87765.0,87759.0,0.011401]
[1766172352938,0.0113984,87780.0,87759.0,0.011401]
[1766172353134,0.0113987,87778.0,87759.0,0.011401]
[1766172353339,0.00368,87777.0,87759.0,0.011401]
[1766172354048,0.00385091,87777.0,87759.0,0.00017091]
[1766172354347,0.00017091,87777.0,87759.0,0.00017091]
[1766172354646,0.0016,87776.0,87759.0,0.00017091]
[1766172355240,0.0016,87776.0,87759.0,0.01157191]
[1766172355838,0.0016,87776.0,87759.0,0.00017091]
[1766172356048,0.0113994,87773.0,87759.0,9.1e-07]
[1766172356242,0.0016,87776.0,87759.0,9.1e-07]
[1766172356243,0.0129989,87776.0,87759.0,9.1e-07]
[1766172357144,0.0016,87776.0,87759.0,9.1e-07]
[1766172357343,0.0016,87776.0,87766.0,0.0114001]
[1766172357739,0.0016,87776.0,87759.0,9.1e-07]
[1766172357944,0.0016,87776.0,87768.0,0.0113998]
[1766172358345,0.0016,87776.0,87764.0,0.0114003]
[1766172358650,0.0016,87776.0,87761.0,0.0114008]
[1766172359149,0.00017091,87777.0,87759.0,9.1e-07]
[1766172359644,0.00017091,87777.0,87765.0,0.0114002]
[1766172360244,0.00017091,87777.0,87762.0,0.0114006]
[1766172360447,0.00017091,87777.0,87764.0,0.0114003]
[1766172361140,0.00017091,87777.0,87759.0,9.1e-07]
[1766172361343,0.0113993,87773.0,87759.0,9.1e-07]
[1766172361648,0.0113995,87771.0,87759.0,9.1e-07]
[1766172361849,0.00048,87772.0,87759.0,9.1e-07]
[1766172362041,0.00017091,87777.0,87769.0,0.0113997]
[1766172362246,0.00017091,87777.0,87773.0,0.0113992]
[1766172362448,0.0113965,87795.0,87777.0,0.0113987]
[1766172362648,0.0113967,87793.0,87777.0,0.0113987]
[1766172362845,0.0113966,87793.0,87755.0,0.00576]
[1766172363050,0.0113981,87782.0,87755.0,0.00576]
[1766172363250,0.0171181,87782.0,87764.0,0.0114003]
[1766172363454,0.00593091,87782.0,87764.0,0.00017091]
[1766172363655,0.00593091,87782.0,87775.0,0.0113989]
[1766172363855,0.00593091,87782.0,87772.0,0.0113993]
[1766172364055,0.00593091,87782.0,87774.0,0.011399]
[1766172364756,9.1e-07,87782.0,87776.0,0.0113988]
[1766172365153,9.1e-07,87782.0,87766.0,0.00576]
[1766172365154,9.1e-07,87782.0,87780.0,0.0113983]
[1766172365352,0.00576,87795.0,87786.0,0.0113974]
[1766172365559,0.00284,87795.0,87786.0,0.0113974]
[1766172365959,0.00284,87795.0,87776.0,0.0113987]
[1766172366267,0.00017091,87794.0,87778.0,0.0113985]
[1766172366852,0.01156741,87794.0,87777.0,0.00017091]
[1766172367158,0.00017091,87794.0,87777.0,0.00017091]
[1766172367555,0.01156751,87794.0,87777.0,0.00017091]
[1766172367860,0.0113973,87789.0,87777.0,0.00013091]
[1766172368160,0.00017091,87794.0,87777.0,0.00013091]
[1766172368364,0.0113967,87793.0,87777.0,0.00013091]
[1766172368852,0.011397,87791.0,87777.0,0.00013091]
[1766172369563,0.0113972,87789.0,87777.0,0.00013091]
[1766172369762,0.0113968,87792.0,87777.0,0.00013091]
[1766172370064,0.00017091,87794.0,87777.0,0.00013091]
[1766172370655,0.00017091,87794.0,87777.0,0.01152951]
[1766172371061,0.00017091,87794.0,87779.0,0.0113984]
[1766172371861,0.00017091,87794.0,87787.0,0.0113974]
[1766172372054,1e-08,87795.0,87794.0,0.0113965]
[1766172372660,0.0113926,87825.0,87778.0,0.0113985]
[1766172372966,0.0113926,87825.0,87777.0,0.00013091]
[1766172372967,0.03136235,87823.0,87810.0,0.0113943]
[1766172373169,0.00576,87823.0,87808.0,0.01156551]
[1766172373353,0.00576,87823.0,87814.0,0.0113938]
[1766172373554,1e-07,87823.0,87822.0,0.0113929]
[1766172374256,0.0082209,87834.0,87826.0,0.0113923]
[1766172374455,0.00576,87833.0,87828.0,0.011392]
[1766172375070,1e-07,87835.0,87831.0,0.0113917]
[1766172375267,0.0113885,87856.0,87824.0,0.00017081]
[1766172375458,0.00368,87855.0,87831.0,0.0113917]
[1766172375761,0.011389,87852.0,87824.0,0.00017081]
[1766172375962,0.0113889,87853.0,87824.0,0.00017081]
[1766172376264,0.0113898,87846.0,87827.0,0.0113922]
[1766172376468,0.0113901,87844.0,87824.0,0.00017081]
[1766172376657,0.00576,87844.0,87825.0,0.0113925]
[1766172376857,0.00576,87844.0,87824.0,0.00017081]
[1766172377258,0.00576,87844.0,87827.0,0.0113922]
[1766172377655,0.00576,87844.0,87830.0,0.0113918]
[1766172377859,0.00576,87844.0,87824.0,0.00017081]
[1766172378059,0.0113892,87851.0,87824.0,0.00017081]
[1766172378265,0.41688852,87860.0,87825.0,0.001]
[1766172378459,0.41688852,87860.0,87826.0,0.0113922]
[1766172378666,0.0113894,87850.0,87827.0,0.00388]
[1766172378964,0.0113896,87848.0,87829.0,0.011392]
[1766172379170,0.00284,87850.0,87824.0,0.00017081]
[1766172379367,0.01139,87844.0,87826.0,0.0113924]
[1766172379562,0.00284,87850.0,87827.0,0.00536]
[1766172379759,0.00284,87850.0,87827.0,0.0167521]
[1766172380072,0.00284,87850.0,87824.0,0.00017081]
[1766172380259,0.00284,87850.0,87824.0,0.00565081]
[1766172380462,0.0113898,87846.0,87828.0,0.0113921]
[1766172380874,0.00284,87850.0,87825.0,0.0113925]
[1766172381168,0.0113917,87832.0,87824.0,0.00017081]
[1766172381374,0.0113914,87834.0,87814.0,0.00552]
[1766172381566,0.0113914,87834.0,87816.0,0.0113937]
[1766172382163,0.0113911,87836.0,87818.0,0.0113934]
[1766172382362,0.00017081,87836.0,87818.0,0.00017081]
[1766172382563,0.00017081,87836.0,87818.0,0.01156421]
[1766172382766,0.01156201,87836.0,87818.0,0.01156421]
[1766172383175,0.0113917,87832.0,87818.0,0.00017081]
[1766172383370,0.00017081,87836.0,87818.0,0.00017081]
[1766172383570,0.0113928,87823.0,87793.0,1.45308]
[1766172383765,0.0113928,87823.0,87804.0,0.0113952]
[1766172384773,0.00017081,87822.0,87806.0,0.0113949]